bitfinex/quotes_ETHUSD_20250605
["timestamp","ask_amount","ask_price","bid_price","bid_amount"]
[1749151646693,0.55,2539.9,2539.8,3.93731789]
[1749151646900,9.806,2539.9,2539.8,3.93731789]
[1749151647103,0.55,2539.9,2539.8,3.93731789]
[1749151647295,18.64166902,2539.9,2539.8,3.93731789]
[1749151647517,0.55,2539.9,2539.8,3.93731789]
[1749151647678,9.804,2539.9,2539.8,3.93731789]
[1749151648430,18.64066902,2539.9,2539.7,3.93739023]
[1749151648575,0.55,2539.6,2539.1,0.02]
[1749151648776,10.81386902,2539.2,2539.1,0.02]
[1749151649014,0.55,2539.1,2537.9,3.94018922]
[1749151649313,9.38666902,2538.3,2538.2,0.32888764]
[1749151649520,22.20466902,2538.3,2538.2,0.32888764]
[1749151649718,18.63666902,2538.3,2538.2,4.26868749]
[1749151649920,9.8,2538.3,2538.2,4.26868749]
[1749151650119,9.8,2538.3,2538.2,0.32888764]
[1749151650120,18.63666902,2538.3,2538.2,0.32888764]
[1749151650291,18.63666902,2538.3,2538.2,4.26868749]
[1749151650518,9.8,2538.3,2538.2,4.26868749]
[1749151650695,9.8,2538.3,2538.2,0.32888764]
[1749151651181,11.1538,2538.3,2538.2,0.32888764]
[1749151651917,11.1538,2538.3,2538.2,4.26868749]
[1749151651918,5.4718,2538.3,2538.2,4.26868749]
[1749151652218,0.55,2538.3,2538.2,4.26868749]
[1749151652520,9.797,2538.3,2538.2,4.26868749]
[1749151653029,3.568,2539.1,2538.2,4.26868749]
[1749151653210,3.568,2539.1,2539.0,3.93855848]
[1749151653523,10.15516902,2539.8,2539.4,3.93793809]
[1749151653740,8.83666902,2540.1,2539.7,3.93747292]
[1749151653933,8.83666902,2539.8,2538.9,3.93871361]
[1749151654079,1.3185,2540.2,2539.4,3.93779784]
[1749151654080,8.83666902,2539.6,2539.4,3.93779784]
[1749151654280,9.244,2539.5,2539.4,3.93793809]
[1749151654822,8.83666902,2540.0,2539.9,3.93716288]
[1749151655123,18.07966902,2540.0,2539.6,3.93754556]
[1749151655305,18.07966902,2540.0,2539.6,3.93762797]
[1749151655306,8.83666902,2539.7,2539.6,3.93762797]
[1749151656002,9.38666902,2539.7,2539.6,3.93762797]
[1749151656592,0.55,2539.6,2538.6,1.4056]
[1749151656806,3.569,2540.1,2540.0,3.93700787]
[1749151657117,12.40566902,2540.1,2540.0,3.93700787]
[1749151657318,22.19266902,2540.1,2540.0,3.93700787]
[1749151657707,1.4208,2540.6,2540.3,3.93642585]
[1749151657914,8.83666902,2540.3,2540.2,3.93668926]
[1749151658217,0.55,2540.2,2540.0,3.93699767]
[1749151658388,0.55,2540.2,2539.5,3.93778302]
[1749151658590,0.55,2539.5,2539.1,1.3051]
[1749151658790,9.783,2539.4,2539.3,3.93809317]
[1749151659910,0.55,2539.4,2539.3,5.23709317]
[1749151660124,9.23,2539.4,2539.3,22.4185529]
[1749151660717,9.23,2539.4,2539.3,21.23708726]
[1749151660983,1.4356,2540.8,2539.5,3.93767839]
[1749151661211,8.83666902,2540.2,2540.1,3.93685287]
[1749151661415,16.0,2540.4,2540.1,3.93685287]
[1749151661686,16.0,2540.4,2540.2,3.93656915]
[1749151661687,9.226,2540.3,2540.2,3.93656915]
[1749151661886,9.776,2540.3,2540.2,3.93656915]
[1749151662186,5.0046,2540.8,2540.7,3.93592317]
[1749151662388,3.569,2540.8,2540.7,3.93592317]
[1749151662825,12.792,2540.8,2540.7,3.93592317]
[1749151663741,0.02,2540.9,2540.8,3.93576826]
[1749151664068,9.24,2540.9,2540.8,19.93576826]
[1749151664280,9.239,2540.9,2540.8,19.93576826]
[1749151665058,9.237,2540.9,2540.8,19.93576826]
[1749151665241,0.02,2540.9,2540.8,21.25836826]
[1749151665444,0.02,2540.9,2540.8,24.17139134]
[1749151665772,0.02,2540.9,2540.8,21.25836826]
[1749151666371,9.233,2540.9,2540.8,21.25836826]
[1749151666883,9.231,2540.9,2540.8,21.25836826]
[1749151667083,0.02,2540.9,2540.8,21.25836826]
[1749151667284,9.78,2540.9,2540.8,21.25836826]
[1749151667491,1.27480622,2541.9,2541.8,3.93421984]
[1749151667660,19.32047524,2541.9,2541.5,3.93464547]
[1749151667861,0.55,2541.6,2540.8,1.3226]
[1749151668189,0.55,2540.8,2540.7,3.93592317]
[1749151668389,9.757,2540.8,2540.7,3.93592317]
[1749151669267,0.55,2541.1,2541.0,3.93545848]
[1749151669455,9.753,2541.1,2541.0,3.93545848]
[1749151670089,18.58966902,2541.1,2541.0,3.93545848]
[1749151670959,0.55,2541.2,2541.1,3.93027956]
[1749151671153,9.749,2541.2,2541.1,3.93027956]
[1749151671592,9.749,2541.2,2540.4,1.348]
[1749151671973,0.55,2540.9,2540.8,3.93576826]
[1749151672180,0.55,2540.9,2540.0,1.352]
[1749151672484,9.199,2541.2,2540.3,3.93654292]
[1749151672485,0.55,2540.4,2540.3,3.93654292]
[1749151672689,9.745,2540.4,2540.3,3.93654292]
[1749151675195,0.55,2540.4,2540.3,3.93654292]
[1749151675505,0.55,2540.5,2540.4,3.93636379]
[1749151675701,9.738,2540.5,2540.4,3.93636379]
[1749151676506,9.738,2540.5,2540.1,3.93676585]
[1749151676672,9.38666902,2540.2,2540.1,3.93676585]
[1749151676871,0.55,2540.2,2540.1,3.93676585]
[1749151677490,9.733,2540.2,2540.1,3.93676585]
[1749151678056,18.56966902,2540.2,2540.1,3.93676585]
[1749151679096,9.38666902,2540.2,2540.1,3.93676585]
[1749151679295,9.729,2540.2,2540.1,3.93676585]
[1749151679501,9.728,2540.2,2540.1,3.93676585]
[1749151680001,0.21008403,2540.4,2540.3,5.36274292]
[1749151680160,9.38708403,2540.4,2540.3,5.36274292]
[1749151680359,9.38708403,2540.4,2540.3,3.93654292]
[1749151680558,9.93708403,2540.4,2540.3,3.93654292]
[1749151681305,0.76008403,2540.4,2540.3,3.93654292]
[1749151681507,9.93408403,2540.4,2540.3,3.93654292]
[1749151681672,0.55,2540.3,2540.2,3.93665385]
[1749151681877,0.55,2540.3,2539.9,1.4262]
[1749151681878,9.38666902,2540.3,2540.1,3.93683752]
[1749151682086,0.55,2540.1,2540.0,3.93700787]
[1749151682403,0.55,2540.1,2539.7,3.93745279]
[1749151682404,0.55,2540.1,2539.5,21.3638911]
[1749151682717,0.55,2540.0,2539.9,3.93704772]
[1749151683212,9.719,2540.0,2539.9,3.93704772]
[1749151684315,0.21008403,2540.4,2540.3,3.93654292]
[1749151684515,9.37608403,2540.4,2540.3,3.93654292]
[1749151684712,0.21008403,2540.4,2540.3,3.93654292]
[1749151685013,0.21008403,2540.4,2540.3,5.36274292]
[1749151685221,9.37408403,2540.4,2540.3,5.36274292]
[1749151685865,9.92308403,2540.4,2540.3,3.93654292]
[1749151686321,0.55,2540.3,2540.0,3.93689674]
[1749151686520,0.55,2540.1,2539.6,1.2949]
[1749151686820,0.55,2539.9,2539.8,3.93722444]
[1749151687119,0.55,2539.9,2539.6,1.2949]
[1749151687338,0.55,2539.9,2539.1,0.02]
[1749151687339,10.80556902,2539.9,2539.1,0.02]
[1749151687472,0.55,2539.2,2539.1,3.95840337]
[1749151687670,9.708,2539.2,2539.1,3.95840337]
[1749151688400,1.4189,2539.9,2539.5,3.93778302]
[1749151688401,0.55,2539.6,2539.5,3.93778302]
[1749151688568,9.705,2539.6,2539.1,0.02]
[1749151688774,18.54166902,2539.6,2539.1,0.02]
[1749151689005,18.54166902,2539.6,2539.4,3.93792879]
[1749151689207,18.54166902,2539.6,2539.3,3.9380478]
[1749151689420,18.54166902,2539.6,2539.2,3.93821021]
[1749151689787,9.152,2539.5,2539.2,3.93824826]
[1749151689985,9.702,2539.5,2539.4,3.93793809]
[1749151690381,0.55,2539.5,2539.4,3.93793809]
[1749151690705,9.701,2539.5,2539.4,3.93793809]
[1749151691114,0.55,2539.5,2539.4,3.93793809]
[1749151691316,9.699,2539.5,2539.4,3.93793809]
[1749151691685,0.55,2539.4,2539.3,3.93801752]
[1749151693139,0.55,2539.4,2539.2,3.93824826]
[1749151693271,0.55,2539.2,2539.1,0.02]
[1749151693471,12.90166902,2539.2,2539.1,0.02]
[1749151694325,14.33126902,2539.2,2539.1,0.02]
[1749151694678,23.47226902,2539.2,2539.1,0.02]
[1749151695318,4.065,2539.2,2539.1,0.02]
[1749151695635,13.204,2539.2,2539.1,3.95840337]
[1749151696324,33.14224826,2539.2,2539.1,0.02]
[1749151696931,33.14224826,2539.2,2538.3,3.93950538]
[1749151696932,0.55,2538.8,2538.3,3.93950945]
[1749151697129,0.55,2538.8,2538.2,3.93975309]
[1749151697130,0.55,2538.3,2538.2,3.93975309]
[1749151697318,0.55,2538.3,2538.2,3.93979985]
[1749151698502,0.55,2538.3,2538.1,0.02]
[1749151698805,13.141,2538.2,2538.1,0.02]
[1749151699119,0.55,2538.2,2538.1,3.95995508]
[1749151699692,8.511,2538.8,2538.6,3.93909879]
[1749151699927,21.42666902,2538.7,2538.6,3.93909879]
[1749151700113,21.97666902,2538.7,2538.6,3.93909879]
[1749151701234,8.511,2538.8,2538.7,3.9390239]
[1749151701405,21.097,2538.8,2538.7,3.9390239]
[1749151701612,12.29666902,2538.9,2538.8,3.93886875]
[1749151701819,21.42166902,2538.9,2538.8,3.93886875]
[1749151702035,21.97166902,2538.9,2538.8,3.93886875]
[1749151702330,21.97166902,2538.9,2538.1,3.95994514]
[1749151702331,0.55,2538.8,2538.6,3.93908364]
[1749151702506,9.38666902,2538.7,2538.6,3.93907826]
[1749151702710,17.3791,2539.2,2538.5,3.93932916]
[1749151702894,8.83666902,2538.6,2538.1,3.95986194]
[1749151703093,8.83666902,2538.6,2538.4,3.93948944]
[1749151703337,8.83666902,2538.6,2538.5,3.93933425]
[1749151703627,17.95866902,2538.6,2538.5,3.93933425]
[1749151703798,0.55,2538.5,2538.4,3.939422]
[1749151706232,0.55,2539.1,2539.0,3.93843022]
[1749151706419,12.29766902,2539.1,2539.0,3.93843022]
[1749151706733,8.83666902,2539.1,2539.0,3.93843022]
[1749151706938,0.55,2539.0,2538.9,3.938652]
[1749151707294,10.62869314,2539.0,2538.9,3.938652]
[1749151707733,9.75681549,2539.3,2539.1,3.93840337]
[1749151707940,1.24481549,2539.3,2539.2,3.93824826]
[1749151708157,10.35481549,2539.3,2539.2,3.93824826]
[1749151708321,10.90481549,2539.3,2539.2,3.93824826]
[1749151708698,11.15080249,2539.3,2539.2,3.93824826]
[1749151708936,1.49080249,2539.3,2539.2,3.93824826]
[1749151709259,20.67649563,2539.3,2539.2,3.93824826]
[1749151709396,1.49080249,2539.3,2539.2,3.93824826]
[1749151709595,10.59680249,2539.3,2539.2,6.03171061]
[1749151710102,11.14680249,2539.3,2539.2,5.24404826]
[1749151710530,10.90081549,2539.3,2539.2,5.24404826]
[1749151710835,1.24481549,2539.3,2539.2,21.24404826]
[1749151711332,1.25715353,2539.4,2539.3,3.93809317]
[1749151711497,10.35815353,2539.4,2539.3,3.93809317]
[1749151711704,10.35815353,2539.4,2539.3,6.88892325]
[1749151712249,10.35815353,2539.4,2539.3,3.93809317]
[1749151712554,10.90815353,2539.4,2539.3,3.93809317]
[1749151713116,1.80715353,2539.4,2539.3,3.93809317]
[1749151713442,10.90215353,2539.4,2539.3,3.93809317]
[1749151713938,10.35015353,2539.4,2539.3,3.93809317]
[1749151714240,1.25715353,2539.4,2539.3,22.88867503]
[1749151714427,10.34815353,2539.4,2539.3,22.88867503]
[1749151714626,10.34815353,2539.4,2539.3,19.93809317]
[1749151715126,10.89815353,2539.4,2539.3,19.93809317]
[1749151716352,10.89815353,2539.4,2539.3,3.93809317]
[1749151718049,1.80715353,2539.4,2539.3,3.93809317]
[1749151718215,10.88715353,2539.4,2539.3,3.93809317]
[1749151718605,1.80715353,2539.4,2539.3,3.93809317]
[1749151718846,10.33515353,2539.4,2539.3,3.93809317]
[1749151719048,1.25715353,2539.4,2539.3,3.93809317]
[1749151719233,10.33415353,2539.4,2539.3,3.93809317]
[1749151719449,10.33415353,2539.4,2539.3,22.71956484]
[1749151719649,1.25715353,2539.4,2539.3,24.07466484]
[1749151719853,10.33215353,2539.4,2539.3,24.07466484]
[1749151720048,10.33215353,2539.4,2539.3,21.29319317]
[1749151720451,10.88215353,2539.4,2539.3,21.29319317]
[1749151720635,9.625,2539.4,2539.3,21.29319317]
[1749151722464,9.075,2539.4,2539.3,21.29319317]
[1749151722664,12.30892715,2540.2,2540.1,3.93685287]
[1749151723027,17.91492715,2540.2,2540.1,3.93685287]
[1749151723335,18.46492715,2540.2,2540.1,3.93685287]
[1749151724062,1.64188403,2540.4,2540.3,3.93654292]
[1749151724266,22.95381118,2540.4,2540.3,3.93654292]
[1749151724631,11.04081118,2540.4,2540.3,3.93654292]
[1749151724962,0.21008403,2540.4,2540.3,3.93654292]
[1749151725264,0.21008403,2540.4,2540.3,21.12649075]
[1749151725563,9.26908403,2540.4,2540.3,21.12649075]
[1749151725723,9.26908403,2540.4,2540.3,20.33916983]
[1749151725928,9.26708403,2540.4,2540.3,20.33916983]
[1749151726235,9.26608403,2540.4,2540.3,20.33916983]
[1749151726639,9.26508403,2540.4,2540.3,20.33916983]
[1749151729341,9.81508403,2540.4,2540.3,3.93654292]
[1749151729543,16.55,2540.3,2540.2,3.93658537]
[1749151729879,28.79792715,2540.3,2539.5,3.93778302]
[1749151730050,0.55,2539.7,2539.5,3.93778302]
[1749151730235,0.55,2539.7,2539.6,3.93762797]
[1749151730439,9.594,2539.7,2539.6,3.93762797]
[1749151730648,19.399,2540.3,2540.1,3.93685287]
[1749151730649,0.55,2540.2,2540.1,3.93685287]
[1749151730850,16.55,2540.2,2540.1,3.93685287]
[1749151731051,25.592,2540.2,2540.1,3.93685287]
[1749151731250,16.0,2540.2,2540.1,3.93685287]
[1749151731475,25.04,2540.2,2540.1,3.93685287]
[1749151731676,25.59,2540.2,2540.1,3.93685287]
[1749151732177,9.59,2540.2,2540.1,3.93685287]
[1749151732887,0.55,2540.2,2540.1,4.86024585]
[1749151733179,19.65387141,2540.2,2540.1,3.93685287]
[1749151734487,19.65387141,2540.2,2540.0,3.93687458]
[1749151734695,0.55,2540.1,2540.0,3.93700787]
[1749151734986,3.949,2540.1,2540.0,3.93700787]
[1749151735387,3.949,2540.1,2539.3,3.93807592]
[1749151735722,10.61787141,2539.6,2539.5,3.93778302]
[1749151735912,9.578,2539.6,2539.5,3.93778302]
[1749151736771,9.578,2539.6,2539.4,3.93793595]
[1749151736772,0.55,2539.5,2539.4,3.93793595]
[1749151737699,0.55,2539.1,2538.1,0.02]
[1749151737898,1.3013,2539.4,2538.1,3.95982055]
[1749151737899,0.55,2538.2,2538.1,3.95982055]
[1749151738203,0.55,2538.5,2538.4,3.93948944]
[1749151738434,9.572,2538.5,2538.4,3.93948944]
[1749151738797,9.572,2538.5,2538.1,0.02]
[1749151739002,0.55,2538.3,2538.2,3.93979985]
[1749151739297,0.55,2538.3,2538.1,0.02]
[1749151739512,13.46687141,2538.4,2538.1,0.02]
[1749151739513,9.568,2538.2,2538.1,3.95995508]
[1749151739924,0.55,2538.2,2538.1,3.95995508]
[1749151740414,9.566,2538.2,2538.1,3.95995508]
[1749151740933,0.55,2538.2,2538.1,3.95995508]
[1749151741300,9.565,2538.2,2538.1,3.95995508]
[1749151741926,9.564,2538.2,2538.1,3.95995508]
[1749151742099,0.55,2538.2,2538.1,3.95995508]
[1749151742303,11.908,2538.7,2538.6,3.93917907]
[1749151742738,20.919,2538.7,2538.6,3.93917907]
[1749151742905,1.84053416,2538.8,2538.7,3.9390239]
[1749151743316,10.85053416,2538.8,2538.7,3.9390239]
[1749151743522,20.25882983,2538.8,2538.7,3.9390239]
[1749151743964,20.25882983,2538.8,2537.4,3.94098062]
[1749151744132,20.25882983,2538.8,2537.4,1.3687]
[1749151744133,9.40929567,2538.2,2537.4,1.3687]
[1749151744443,0.55,2538.2,2538.1,3.95995508]
[1749151744647,9.557,2538.2,2538.1,3.95995508]
[1749151745601,11.911,2538.6,2538.1,3.95995508]
[1749151745819,3.14333416,2538.8,2538.7,3.9390239]
[1749151745820,1.84053416,2538.8,2538.7,3.9390239]
[1749151746025,10.84353416,2538.8,2538.7,3.9390239]
[1749151746513,1.84053416,2538.8,2538.7,3.9390239]
[1749151746713,10.84153416,2538.8,2538.7,3.9390239]
[1749151746908,10.84153416,2538.8,2538.7,5.2384239]
[1749151746909,1.84053416,2538.8,2538.7,5.2384239]
[1749151747136,10.84153416,2538.8,2538.7,6.55011512]
[1749151747656,10.83953416,2538.8,2538.7,6.55011512]
[1749151747850,8.999,2538.8,2538.7,6.55011512]
[1749151748346,12.26029567,2540.0,2539.9,3.93716288]
[1749151748649,8.85929567,2540.0,2539.9,3.93716288]
[1749151749151,3.401,2540.2,2540.1,3.93685287]
[1749151749459,12.396,2540.2,2540.1,3.93685287]
[1749151749753,3.401,2540.2,2540.1,3.93685287]
[1749151749951,12.944,2540.2,2540.1,3.93685287]
[1749151750157,12.394,2540.2,2540.1,3.93685287]
[1749151750925,17.37129567,2540.5,2540.3,3.93654292]
[1749151750926,0.76008403,2540.4,2540.3,3.93654292]
[1749151751153,18.6083797,2540.4,2540.3,3.93654292]
[1749151751355,0.55,2540.3,2539.6,3.93762797]
[1749151751657,0.55,2539.8,2539.7,3.93747292]
[1749151751854,9.537,2539.8,2539.7,3.93747292]
[1749151752618,0.21008403,2540.4,2540.3,3.93654292]
[1749151752825,9.19408403,2540.4,2540.3,3.93654292]
[1749151753046,0.21008403,2540.4,2540.3,3.93654292]
[1749151753352,9.19208403,2540.4,2540.3,3.93654292]
[1749151753954,9.74208403,2540.4,2540.3,3.93654292]
[1749151754162,9.73908403,2540.4,2540.3,3.93654292]
[1749151754361,0.21008403,2540.4,2540.3,3.93654292]
[1749151754565,9.18808403,2540.4,2540.3,3.93654292]
[1749151754923,18.5973797,2540.4,2540.3,3.93654292]
[1749151755121,0.76008403,2540.4,2540.3,3.93654292]
[1749151755421,18.5953797,2540.4,2540.3,3.93654292]
[1749151755922,0.76008403,2540.4,2540.3,3.93654292]
[1749151756324,0.21008403,2540.4,2540.3,4.72386458]
[1749151756565,9.18108403,2540.4,2540.3,4.72386458]
[1749151756731,9.73108403,2540.4,2540.3,4.72386458]
[1749151757136,9.72908403,2540.4,2540.3,4.72386458]
[1749151757335,9.72908403,2540.4,2540.3,3.93654292]
[1749151758624,0.21008403,2540.4,2540.3,3.93654292]
[1749151758823,0.21008403,2540.4,2540.3,19.93654292]
[1749151759241,9.17308403,2540.4,2540.3,19.93654292]
[1749151759845,9.72308403,2540.4,2540.3,19.93654292]
[1749151760153,9.72308403,2540.4,2540.3,3.93654292]
[1749151761589,0.55,2540.3,2540.2,3.93667367]
[1749151761898,1.80592865,2540.3,2540.2,3.93669789]
[1749151762099,1.80592865,2540.3,2540.1,3.93678208]
[1749151762275,0.55,2540.1,2540.0,3.93694807]
[1749151762476,9.504,2540.1,2540.0,3.93694807]
[1749151762689,9.504,2540.1,2539.5,5.30096531]
[1749151763001,9.504,2540.1,2540.0,3.93700787]
[1749151763412,9.504,2540.1,2540.0,3.88700787]
[1749151763732,10.11522432,2540.3,2540.2,3.93669789]
[1749151763733,1.80592865,2540.3,2540.2,3.93669789]
[1749151764019,19.61422432,2540.3,2540.2,3.93669789]
[1749151764222,0.55,2540.2,2540.1,3.93685287]
[1749151764371,0.55,2540.2,2540.0,3.93691869]
[1749151764576,0.55,2540.2,2540.1,3.93685287]
[1749151765185,9.495,2540.2,2540.1,3.93685287]
[1749151767297,18.35429567,2540.2,2540.1,3.93685287]
[1749151767718,1.3433,2539.7,2538.3,1.3498]
[1749151767918,0.55,2538.7,2538.6,3.93917907]
[1749151768214,0.55,2538.9,2538.7,3.9390239]
[1749151768421,0.55,2538.9,2538.8,3.93886875]
[1749151768626,0.55,2539.3,2539.2,3.93824826]
[1749151768827,9.485,2539.3,2539.2,3.93824826]
[1749151769132,9.484,2539.3,2539.2,3.93824826]
[1749151769285,0.55,2539.3,2539.2,3.93824826]
[1749151769490,9.483,2539.3,2539.2,3.93824826]
[1749151769712,9.482,2539.3,2539.2,3.93824826]
[1749151769912,8.508,2539.6,2539.5,3.93778302]
[1749151770190,0.55,2539.6,2539.5,3.93778302]
[1749151770423,8.93,2539.6,2539.5,3.93778302]
[1749151771012,9.48,2539.6,2539.5,3.93778302]
[1749151771226,0.55,2539.6,2539.5,3.93778302]
[1749151771410,3.338,2539.8,2539.7,3.93747292]
[1749151771729,12.266,2539.8,2539.7,3.93747292]
[1749151771929,1.25592865,2540.3,2540.1,3.93672667]
[1749151772149,1.80592865,2540.3,2540.2,3.93669789]
[1749151772427,10.18192865,2540.3,2540.2,3.93669789]
[1749151772826,0.55,2540.2,2539.8,1.3089]
[1749151773016,10.18192865,2540.3,2540.2,3.93669789]
[1749151773325,1.25592865,2540.3,2540.2,3.93669789]
[1749151773527,10.17892865,2540.3,2540.2,3.93669789]
[1749151773694,1.80592865,2540.3,2540.2,3.93669789]
[1749151773890,10.72792865,2540.3,2540.2,3.93669789]
[1749151774697,1.80592865,2540.3,2540.2,3.93669789]
[1749151774934,10.72492865,2540.3,2540.2,3.93669789]
[1749151775330,0.55,2540.2,2540.1,3.9367683]
[1749151776673,0.55,2540.2,2539.5,1.397]
[1749151776975,0.55,2539.8,2539.7,3.93747292]
[1749151777177,9.463,2539.8,2539.7,3.93747292]
[1749151777470,9.463,2539.8,2539.1,17.3935]
[1749151777671,0.55,2539.5,2539.4,3.93793809]
[1749151778277,0.55,2539.5,2539.4,4.72553861]
[1749151778479,9.459,2539.5,2539.4,4.72553861]
[1749151778676,9.459,2539.5,2539.4,3.93793809]
[1749151778838,20.59392865,2540.3,2540.2,3.93669789]
[1749151779039,13.45322432,2540.3,2540.2,3.93669789]
[1749151779278,22.35922432,2540.3,2540.2,3.93669789]
[1749151779861,22.90922432,2540.3,2540.2,3.93669789]
[1749151780063,10.66522432,2540.3,2540.2,3.93669789]
[1749151780273,14.00322432,2540.3,2540.2,3.93669789]
[1749151780480,22.90622432,2540.3,2540.2,3.93669789]
[1749151780693,0.55,2540.2,2540.1,3.93684115]
[1749151781185,9.451,2540.2,2540.1,3.93684115]
[1749151784208,10.11522432,2540.3,2540.1,3.93684115]
[1749151784209,1.25592865,2540.3,2540.2,5.29969789]
[1749151784511,10.69792865,2540.3,2540.2,5.29969789]
[1749151784694,10.14792865,2540.3,2540.2,5.29969789]
[1749151785414,10.69492865,2540.3,2540.2,5.29969789]
[1749151785711,10.14492865,2540.3,2540.2,5.29969789]
[1749151785886,1.25592865,2540.3,2540.2,22.61705215]
[1749151786201,10.14292865,2540.3,2540.2,22.61705215]
[1749151786402,10.14292865,2540.3,2540.2,21.29969789]
[1749151786822,8.904,2540.9,2540.8,21.29876826]
[1749151786966,0.02,2540.9,2540.8,21.29876826]
[1749151787170,8.903,2540.9,2540.8,21.29876826]
[1749151788480,9.453,2540.9,2540.8,21.29876826]
[1749151789079,0.02,2540.9,2540.8,24.21584258]
[1749151789272,8.896,2540.9,2540.8,24.21584258]
[1749151789596,0.02,2541.9,2541.8,3.93421984]
[1749151789796,8.895,2541.9,2541.6,3.93452484]
[1749151789999,9.40929567,2541.7,2541.6,3.93452484]
[1749151790174,0.55,2541.6,2540.9,3.93553801]
[1749151790513,8.895,2541.9,2541.3,3.9349939]
[1749151790514,9.40929567,2541.4,2541.3,3.9349939]
[1749151790670,18.28129567,2541.4,2541.3,3.9349939]
[1749151790877,9.40929567,2541.7,2541.6,3.93452943]
[1749151791090,18.28029567,2541.7,2541.6,3.93452943]
[1749151791917,18.27629567,2541.7,2541.6,3.93452943]
[1749151792632,18.27529567,2541.7,2541.6,3.93452943]
[1749151794605,9.41,2541.7,2541.6,3.93452943]
[1749151794824,0.02,2541.9,2541.8,3.93421984]
[1749151795018,8.878,2541.9,2541.8,3.93421984]
[1749151795331,0.02,2541.9,2541.8,3.93421984]
[1749151795511,8.876,2541.9,2541.8,3.93421984]
[1749151796343,8.874,2541.9,2541.8,3.93421984]
[1749151797042,8.872,2541.9,2541.8,3.93421984]
[1749151797617,8.87,2541.9,2541.8,3.93421984]
[1749151797837,0.02,2541.9,2541.8,3.93421984]
[1749151798137,9.418,2541.9,2541.8,3.93421984]
[1749151798337,0.55,2541.8,2541.7,3.93425471]
[1749151800051,9.392,2541.8,2541.7,3.93425471]
[1749151800255,0.02,2541.9,2541.8,3.93421984]
[1749151800459,8.861,2541.9,2541.8,3.93421984]
[1749151800755,1.8558,2541.8,2541.1,1.318]
[1749151800955,0.55,2541.1,2541.0,3.93545848]
[1749151801155,9.389,2541.1,2541.0,3.93545848]
[1749151802332,0.55,2541.0,2540.9,3.93561336]
[1749151802863,4.5798,2541.8,2541.7,3.93437463]
[1749151803171,18.99809567,2541.8,2541.7,3.93437463]
[1749151803327,17.69229567,2541.8,2541.6,3.93445942]
[1749151803525,17.69229567,2541.8,2541.5,3.93464755]
[1749151803741,17.69229567,2541.8,2541.7,3.93437463]
[1749151803940,0.55,2541.7,2541.1,1.3347]
[1749151804164,0.55,2541.2,2541.1,3.93527535]
[1749151804336,9.381,2541.2,2541.1,3.93527535]
[1749151804885,0.55,2541.2,2541.1,3.93527535]
[1749151805038,9.378,2541.2,2541.1,3.93527535]
[1749151805581,10.22959567,2541.8,2541.7,3.93437463]
[1749151805861,19.05659567,2541.8,2541.4,3.93481546]
[1749151806070,0.55,2541.4,2540.7,1.419]
[1749151806291,9.40929567,2540.8,2540.7,3.93592317]
[1749151806589,18.23429567,2540.8,2540.7,3.93592317]
[1749151807437,9.40929567,2540.8,2540.7,3.93592317]
[1749151807637,8.821,2540.9,2540.8,1.3327]
[1749151807973,9.40929567,2541.4,2541.3,3.9349939]
[1749151808144,1.3862,2541.9,2541.8,3.93421984]
[1749151808329,1.3862,2541.9,2540.8,1.3327]
[1749151808330,10.24549567,2541.9,2540.8,1.3327]
[1749151808534,8.85929567,2541.5,2540.9,3.93561336]
[1749151808756,8.85929567,2541.5,2540.8,1.3327]
[1749151808757,9.40929567,2541.5,2541.4,3.93483906]
[1749151808943,18.22629567,2541.5,2541.4,3.93483906]
[1749151810132,0.55,2541.4,2541.1,3.93516203]
[1749151810331,9.40929567,2541.2,2541.1,3.93516203]
[1749151810535,0.55,2541.2,2541.1,3.93516203]
[1749151810774,9.362,2541.2,2541.1,3.93516203]
[1749151810973,3.274,2541.8,2541.3,3.9349939]
[1749151811183,19.274,2541.8,2541.7,3.93437463]
[1749151811362,19.274,2541.8,2541.5,3.93452947]
[1749151811363,16.0,2541.7,2540.4,3.93623939]
[1749151811537,17.3862,2541.9,2541.8,3.93421984]
[1749151811738,0.02,2541.9,2541.8,3.93421984]
[1749151812375,0.02,2541.9,2541.8,5.35441984]
[1749151812710,8.827,2541.9,2541.8,6.28329636]
[1749151812978,9.377,2541.9,2541.8,3.93421984]
[1749151813144,0.02,2541.9,2541.8,3.93421984]
[1749151813483,8.825,2541.9,2541.8,3.93421984]
[1749151813976,8.823,2541.9,2541.8,3.93421984]
[1749151814481,8.822,2541.9,2541.8,4.86309636]
[1749151815150,9.372,2541.9,2541.8,3.93421984]
[1749151815477,0.55,2541.8,2541.5,3.93462562]
[1749151815643,9.40929567,2541.8,2541.7,3.93437463]
[1749151816051,9.40929567,2541.8,2541.4,3.93475124]
[1749151816244,0.55,2541.4,2541.1,1.3781]
[1749151816464,0.55,2541.2,2541.1,3.9353036]
[1749151816864,0.57,2541.9,2541.8,3.93421984]
[1749151817176,34.57971842,2541.9,2541.8,3.93421984]
[1749151817474,25.78571842,2541.9,2541.7,3.93422304]
[1749151817677,25.42929567,2541.9,2541.8,3.93421984]
[1749151817980,34.22029567,2541.9,2541.1,3.9353036]
[1749151818183,34.22029567,2541.9,2541.1,19.9353036]
[1749151818184,0.55,2541.2,2541.1,19.9353036]
[1749151818389,9.34,2541.2,2541.1,19.9353036]
[1749151818878,9.34,2541.2,2540.4,1.387]
[1749151819050,0.55,2540.6,2540.5,3.93623302]
[1749151819256,9.338,2540.6,2540.5,3.93623302]
[1749151819478,9.338,2540.6,2540.5,19.93623302]
[1749151819685,9.338,2540.6,2540.5,3.93623302]
[1749151821155,12.43775922,2541.5,2540.5,3.93623302]
[1749151821156,1.3115,2541.7,2540.7,3.93592317]
[1749151821339,17.64129567,2541.6,2541.5,19.93468424]
[1749151822450,18.19129567,2541.6,2541.5,19.93468424]
[1749151822651,17.64129567,2541.6,2541.5,19.93468424]
[1749151822951,0.02,2541.9,2541.8,19.93421984]
[1749151823179,17.65829567,2541.9,2541.8,16.0]
[1749151823769,17.65829567,2541.9,2541.7,19.93436846]
[1749151823972,0.55,2541.8,2541.7,19.93430493]